[Event "*** Titled Tuesday 3|2 Blitz"]
[Site "Chess.com"]
[Date "2016.10.04"]
[Round "4"]
[White "Jahonas"]
[Black "pedromartinez91"]
[Result "1/2-1/2"]
[WhiteElo "2166"]
[BlackElo "2335"]
[TimeControl "180+2"]
[EndTime "17:52:38 PDT"]
[Termination "Game drawn by repetition"]

1. d4 {[%clk 0:02:56.9]} 1... d5 {[%clk 0:02:55.3]} 2. Nf3 {[%clk 0:02:57.5]}
2... e6 {[%clk 0:02:51.4]} 3. c3 {[%clk 0:02:58.5]} 3... Nf6 {[%clk 0:02:51.2]}
4. Bf4 {[%clk 0:02:59.3]} 4... Bd6 {[%clk 0:02:51.2]} 5. e3 {[%clk 0:02:59.7]}
5... c5 {[%clk 0:02:43.6]} 6. Nbd2 {[%clk 0:03:00]} 6... Nc6 {[%clk 0:02:44]} 7.
Bxd6 {[%clk 0:03:00.8]} 7... Qxd6 {[%clk 0:02:44.3]} 8. Bd3 {[%clk 0:03:02.1]}
8... O-O {[%clk 0:02:43.8]} 9. O-O {[%clk 0:03:02.8]} 9... e5 {[%clk 0:02:44.6]}
10. dxe5 {[%clk 0:03:03.7]} 10... Nxe5 {[%clk 0:02:45.4]} 11. Nxe5 {[%clk
0:03:04.8]} 11... Qxe5 {[%clk 0:02:46]} 12. Nf3 {[%clk 0:03:06]} 12... Qe7
{[%clk 0:02:46.8]} 13. h3 {[%clk 0:03:06.8]} 13... Be6 {[%clk 0:02:43.1]} 14.
Rc1 {[%clk 0:03:02.2]} 14... Rfd8 {[%clk 0:02:42.6]} 15. Qe2 {[%clk 0:03:01.2]}
15... Rd6 {[%clk 0:02:41.6]} 16. c4 {[%clk 0:03:02.2]} 16... b6 {[%clk
0:02:39.3]} 17. cxd5 {[%clk 0:03:01.8]} 17... Bxd5 {[%clk 0:02:40]} 18. a3
{[%clk 0:03:00.6]} 18... Rad8 {[%clk 0:02:36.7]} 19. Bc4 {[%clk 0:02:42.5]}
19... Bxc4 {[%clk 0:02:31.7]} 20. Qxc4 {[%clk 0:02:40.7]} 20... Qe4 {[%clk
0:02:32.1]} 21. Qxe4 {[%clk 0:02:40.6]} 21... Nxe4 {[%clk 0:02:32.8]} 22. Rc2
{[%clk 0:02:41.6]} 22... h6 {[%clk 0:02:26]} 23. Re1 {[%clk 0:02:39.1]} 23... a5
{[%clk 0:02:25.5]} 24. Kf1 {[%clk 0:02:40]} 24... Kf8 {[%clk 0:02:17.9]} 25. Ke2
{[%clk 0:02:40.7]} 25... Ke7 {[%clk 0:02:18.7]} 26. Rec1 {[%clk 0:02:41]} 26...
Ke6 {[%clk 0:02:15.2]} 27. Rb1 {[%clk 0:02:40.2]} 27... b5 {[%clk 0:02:08.1]}
28. b4 {[%clk 0:02:38.3]} 28... axb4 {[%clk 0:02:06.6]} 29. axb4 {[%clk
0:02:38.8]} 29... c4 {[%clk 0:01:57.5]} 30. Nd4+ {[%clk 0:02:37.2]} 30... Ke5
{[%clk 0:01:50.9]} 31. f3 {[%clk 0:02:30]} 31... Ng3+ {[%clk 0:01:36.9]} 32. Kf2
{[%clk 0:02:30.5]} 32... Nf5 {[%clk 0:01:37.8]} 33. Nxb5 {[%clk 0:02:12]} 33...
Rd2+ {[%clk 0:01:38]} 34. Rxd2 {[%clk 0:02:09.8]} 34... Rxd2+ {[%clk 0:01:39.6]}
35. Kg1 {[%clk 0:02:04.9]} 35... Nxe3 {[%clk 0:01:39.8]} 36. Nc3 {[%clk
0:01:55.3]} 36... Rxg2+ {[%clk 0:01:33.1]} 37. Kh1 {[%clk 0:01:55.8]} 37... Rc2
{[%clk 0:01:26.2]} 38. b5 {[%clk 0:01:52.1]} 38... Nf5 {[%clk 0:00:59.8]} 39. b6
{[%clk 0:01:48.8]} 39... Ne7 {[%clk 0:00:51.6]} 40. b7 {[%clk 0:01:20.4]} 40...
Nc6 {[%clk 0:00:43.8]} 41. Rb5+ {[%clk 0:00:54.6]} 41... Kf4 {[%clk 0:00:41.8]}
42. Nd5+ {[%clk 0:00:51.7]} 42... Kg3 {[%clk 0:00:41.7]} 43. Rb1 {[%clk
0:00:36.3]} 43... c3 {[%clk 0:00:36.3]} 44. Ne3 {[%clk 0:00:33.2]} 44... Re2
{[%clk 0:00:31]} 45. Nf5+ {[%clk 0:00:30.5]} 45... Kxh3 {[%clk 0:00:31.7]} 46.
Nd4 {[%clk 0:00:23.2]} 46... Rh2+ {[%clk 0:00:25]} 47. Kg1 {[%clk 0:00:23.7]}
47... Nxd4 {[%clk 0:00:25.6]} 48. b8=Q {[%clk 0:00:23.7]} 48... Nxf3+ {[%clk
0:00:25]} 49. Kf1 {[%clk 0:00:24.9]} 49... Nd2+ {[%clk 0:00:25.1]} 50. Ke1
{[%clk 0:00:25.1]} 50... Nxb1 {[%clk 0:00:22.7]} 51. Qc8+ {[%clk 0:00:25.1]}
51... Kh4 {[%clk 0:00:18.7]} 52. Qc4+ {[%clk 0:00:21.9]} 52... Kg5 {[%clk
0:00:15.1]} 53. Qc5+ {[%clk 0:00:16.8]} 53... Kg4 {[%clk 0:00:15.1]} 54. Qd4+
{[%clk 0:00:17]} 54... Kh3 {[%clk 0:00:15.9]} 55. Qe3+ {[%clk 0:00:17.7]} 55...
Kg4 {[%clk 0:00:16.5]} 56. Qe4+ {[%clk 0:00:18.6]} 56... Kh3 {[%clk 0:00:17.6]}
57. Qf3+ {[%clk 0:00:19.3]} 57... Kh4 {[%clk 0:00:18.3]} 58. Qf4+ {[%clk
0:00:20]} 58... Kh3 {[%clk 0:00:18.7]} 59. Qf3+ {[%clk 0:00:21.3]} 59... Kh4
{[%clk 0:00:19.7]} 60. Qf4+ {[%clk 0:00:22.7]} 60... Kh3 {[%clk 0:00:20.7]} 61.
Qf3+ {[%clk 0:00:23.8]} 61... Kh4 {[%clk 0:00:21.7]} 1/2-1/2

[Event "*** Titled Tuesday 3|2 Blitz"]
[Site "Chess.com"]
[Date "2016.10.04"]
[Round "4"]
[White "nonscitis"]
[Black "bugsbunny444"]
[Result "0-1"]
[WhiteElo "2310"]
[BlackElo "2350"]
[TimeControl "180+2"]
[EndTime "17:53:00 PDT"]
[Termination "bugsbunny444 won by resignation"]

1. d4 {[%clk 0:03:02]} 1... e6 {[%clk 0:03:00.8]} 2. e4 {[%clk 0:03:00.5]} 2...
d5 {[%clk 0:03:01.3]} 3. Nd2 {[%clk 0:03:01.1]} 3... h6 {[%clk 0:03:01.9]} 4.
Ngf3 {[%clk 0:03:01.2]} 4... Nf6 {[%clk 0:03:03.2]} 5. Bd3 {[%clk 0:02:59.8]}
5... c5 {[%clk 0:03:04.1]} 6. exd5 {[%clk 0:02:55.1]} 6... exd5 {[%clk
0:03:04.5]} 7. O-O {[%clk 0:02:51.5]} 7... c4 {[%clk 0:03:03.1]} 8. Re1+ {[%clk
0:02:51.5]} 8... Be7 {[%clk 0:03:04.8]} 9. Bf1 {[%clk 0:02:51.8]} 9... O-O
{[%clk 0:03:05.8]} 10. b3 {[%clk 0:02:51.8]} 10... c3 {[%clk 0:03:02.4]} 11. Nb1
{[%clk 0:02:52.1]} 11... Bb4 {[%clk 0:02:56.9]} 12. a3 {[%clk 0:02:52.3]} 12...
Qa5 {[%clk 0:02:58.5]} 13. Bd3 {[%clk 0:02:39.9]} 13... Nc6 {[%clk 0:02:55.3]}
14. h3 {[%clk 0:02:38.8]} 14... Ne4 {[%clk 0:02:49.8]} 15. Bxe4 {[%clk
0:02:34.8]} 15... dxe4 {[%clk 0:02:51.7]} 16. Rxe4 {[%clk 0:02:34.8]} 16... Bf5
{[%clk 0:02:53.3]} 17. Rf4 {[%clk 0:02:32.9]} 17... Rad8 {[%clk 0:02:52.3]} 18.
Rxf5 {[%clk 0:02:29.2]} 18... Qxf5 {[%clk 0:02:45.3]} 19. axb4 {[%clk
0:02:30.6]} 19... Nxb4 {[%clk 0:02:46.6]} 20. Nxc3 {[%clk 0:02:23.6]} 20... Nxc2
{[%clk 0:02:38]} 21. Rxa7 {[%clk 0:02:23.2]} 21... Rfe8 {[%clk 0:02:13.5]} 22.
Rxb7 {[%clk 0:01:56]} 22... Qc8 {[%clk 0:02:11.9]} 23. Qxc2 {[%clk 0:01:25.9]}
23... Qxb7 {[%clk 0:02:11.2]} 24. d5 {[%clk 0:01:19.2]} 24... Rc8 {[%clk
0:02:05.1]} 25. Qb2 {[%clk 0:01:15.8]} 25... Rb8 {[%clk 0:01:43.5]} 26. Be3
{[%clk 0:01:07.7]} 26... Qxb3 {[%clk 0:01:42.6]} 27. Qxb3 {[%clk 0:01:06.3]}
27... Rxb3 {[%clk 0:01:44.5]} 28. Na4 {[%clk 0:01:07.3]} 28... Rd3 {[%clk
0:01:21]} 29. Nb6 {[%clk 0:00:50.3]} 29... Rd1+ {[%clk 0:01:07.1]} 30. Kh2
{[%clk 0:00:48.1]} 30... Rb1 {[%clk 0:01:09]} 31. Nc4 {[%clk 0:00:44]} 31... Rb5
{[%clk 0:01:04.1]} 32. d6 {[%clk 0:00:44.1]} 32... Rd5 {[%clk 0:01:02.6]} 33.
Nd4 {[%clk 0:00:32.5]} 33... Re4 {[%clk 0:00:57.2]} 34. Nb6 {[%clk 0:00:08.1]}
34... Rdxd4 {[%clk 0:00:44.6]} 35. Bxd4 {[%clk 0:00:05.9]} 35... Rxd4 {[%clk
0:00:46.5]} 36. d7 {[%clk 0:00:06.6]} 36... Kf8 {[%clk 0:00:45.8]} 37. Kg3
{[%clk 0:00:06.5]} 37... Ke7 {[%clk 0:00:46.4]} 38. Kf3 {[%clk 0:00:06.4]} 38...
Kd8 {[%clk 0:00:35.8]} 39. Ke3 {[%clk 0:00:07.5]} 39... Rb4 {[%clk 0:00:28.7]}
40. Nd5 {[%clk 0:00:08]} 40... Rb3+ {[%clk 0:00:30]} 41. Ke4 {[%clk 0:00:07.6]}
41... Kxd7 {[%clk 0:00:31.6]} 42. f4 {[%clk 0:00:07.9]} 42... Kd6 {[%clk
0:00:29.5]} 43. Ne3 {[%clk 0:00:08.7]} 43... g6 {[%clk 0:00:20.1]} 44. g4 {[%clk
0:00:09.6]} 44... Rb1 {[%clk 0:00:15.6]} 45. f5 {[%clk 0:00:08.1]} 45... Rh1
{[%clk 0:00:16.4]} 46. Nc4+ {[%clk 0:00:05.7]} 46... Ke7 {[%clk 0:00:15.6]} 47.
fxg6 {[%clk 0:00:04.7]} 47... fxg6 {[%clk 0:00:16.7]} 48. Ne5 {[%clk 0:00:06.3]}
48... Kf6 {[%clk 0:00:16.2]} 49. Nd7+ {[%clk 0:00:04.7]} 49... Kg7 {[%clk
0:00:15.3]} 50. Nc5 {[%clk 0:00:04.6]} 50... Rxh3 {[%clk 0:00:15.4]} 51. Ne6+
{[%clk 0:00:05.8]} 51... Kf6 {[%clk 0:00:16.8]} 52. Nd4 {[%clk 0:00:06.7]} 52...
Rh1 {[%clk 0:00:11.7]} 53. Kf4 {[%clk 0:00:06.5]} 53... Rf1+ {[%clk 0:00:10.9]}
54. Kg3 {[%clk 0:00:07.7]} 54... Rd1 {[%clk 0:00:09.7]} 55. Nf3 {[%clk
0:00:08.7]} 55... Rd3 {[%clk 0:00:09.9]} 56. Kf4 {[%clk 0:00:09.9]} 56... Ra3
{[%clk 0:00:10.3]} 57. Ke4 {[%clk 0:00:11.2]} 57... Ra4+ {[%clk 0:00:11.4]} 58.
Nd4 {[%clk 0:00:12.5]} 58... Kg5 {[%clk 0:00:11]} 59. Ke3 {[%clk 0:00:13.2]}
59... Rxd4 {[%clk 0:00:12]} 0-1

[Event "*** Titled Tuesday 3|2 Blitz"]
[Site "Chess.com"]
[Date "2016.10.04"]
[Round "4"]
[White "Quiet_Desperation"]
[Black "AdrianaNikolova"]
[Result "1/2-1/2"]
[WhiteElo "2232"]
[BlackElo "2249"]
[TimeControl "180+2"]
[EndTime "17:54:04 PDT"]
[Termination "Game drawn - insufficient material"]

1. e4 {[%clk 0:03:01.9]} 1... c5 {[%clk 0:03:00.1]} 2. Nf3 {[%clk 0:03:02.2]}
2... Nc6 {[%clk 0:03:00.5]} 3. d4 {[%clk 0:03:01.3]} 3... cxd4 {[%clk
0:03:02.4]} 4. Nxd4 {[%clk 0:03:02.3]} 4... d6 {[%clk 0:03:04.3]} 5. Nc3 {[%clk
0:03:03.1]} 5... Nf6 {[%clk 0:03:04.7]} 6. Bg5 {[%clk 0:03:00.5]} 6... e6 {[%clk
0:03:05.4]} 7. f4 {[%clk 0:03:01.3]} 7... h6 {[%clk 0:02:49.9]} 8. Bh4 {[%clk
0:02:59.6]} 8... a6 {[%clk 0:02:48.9]} 9. Qd2 {[%clk 0:02:59.8]} 9... Nxe4
{[%clk 0:02:42.5]} 10. Nxe4 {[%clk 0:02:59.7]} 10... Qxh4+ {[%clk 0:02:42.5]}
11. g3 {[%clk 0:03:00.9]} 11... Qd8 {[%clk 0:02:43]} 12. O-O-O {[%clk
0:03:01.7]} 12... Nxd4 {[%clk 0:02:39.4]} 13. Qxd4 {[%clk 0:03:02.7]} 13... d5
{[%clk 0:02:39.9]} 14. Bh3 {[%clk 0:02:39.8]} 14... Bd7 {[%clk 0:02:37.4]} 15.
Nc3 {[%clk 0:02:40.2]} 15... Qc7 {[%clk 0:02:28.5]} 16. Rhe1 {[%clk 0:02:30.1]}
16... O-O-O {[%clk 0:02:27.6]} 17. Rd3 {[%clk 0:02:21.2]} 17... Qc5 {[%clk
0:02:26.8]} 18. Qe5 {[%clk 0:02:15.8]} 18... Rg8 {[%clk 0:02:19]} 19. Nxd5
{[%clk 0:02:10.2]} 19... Bd6 {[%clk 0:01:41.8]} 20. Nb6+ {[%clk 0:02:09.3]}
20... Qxb6 {[%clk 0:01:42.6]} 21. Rxd6 {[%clk 0:02:09.7]} 21... Qc7 {[%clk
0:01:44]} 22. Re3 {[%clk 0:02:08]} 22... Bc6 {[%clk 0:01:42.3]} 23. Red3 {[%clk
0:02:03.6]} 23... Rxd6 {[%clk 0:01:42.7]} 24. Rxd6 {[%clk 0:02:02.1]} 24... Kb8
{[%clk 0:01:21.3]} 25. Qd4 {[%clk 0:01:51.4]} 25... Rc8 {[%clk 0:01:17.5]} 26.
c3 {[%clk 0:01:49.2]} 26... Qa5 {[%clk 0:01:01.2]} 27. a3 {[%clk 0:01:40.5]}
27... g6 {[%clk 0:01:01.5]} 28. Bf1 {[%clk 0:01:33.1]} 28... h5 {[%clk
0:00:57.1]} 29. Qf6 {[%clk 0:01:21]} 29... Qc5 {[%clk 0:00:52]} 30. Rd4 {[%clk
0:01:19.1]} 30... Rc7 {[%clk 0:00:42.2]} 31. Bd3 {[%clk 0:01:05.6]} 31... Bd5
{[%clk 0:00:39.7]} 32. Be4 {[%clk 0:00:45]} 32... Bxe4 {[%clk 0:00:34.4]} 33.
Rxe4 {[%clk 0:00:46.2]} 33... Qg1+ {[%clk 0:00:34.9]} 34. Kd2 {[%clk 0:00:44.5]}
34... Qg2+ {[%clk 0:00:36]} 35. Re2 {[%clk 0:00:45.2]} 35... Rd7+ {[%clk
0:00:36.2]} 36. Ke3 {[%clk 0:00:45.1]} 36... Qg1+ {[%clk 0:00:33.6]} 37. Rf2
{[%clk 0:00:35.8]} 37... Qd1 {[%clk 0:00:21.5]} 38. Re2 {[%clk 0:00:32.9]} 38...
Qg1+ {[%clk 0:00:11.4]} 39. Rf2 {[%clk 0:00:33.4]} 39... Qc1+ {[%clk 0:00:10.6]}
40. Kf3 {[%clk 0:00:34]} 40... Qd1+ {[%clk 0:00:10.4]} 41. Kg2 {[%clk
0:00:34.8]} 41... Qd5+ {[%clk 0:00:11.3]} 42. Kg1 {[%clk 0:00:33.6]} 42... Qe4
{[%clk 0:00:11.1]} 43. Qe5+ {[%clk 0:00:34.7]} 43... Qxe5 {[%clk 0:00:11.6]} 44.
fxe5 {[%clk 0:00:36.6]} 44... Kc7 {[%clk 0:00:13.4]} 45. Re2 {[%clk 0:00:37]}
45... Kc6 {[%clk 0:00:12.2]} 46. Kf2 {[%clk 0:00:38]} 46... Rc7 {[%clk
0:00:13.6]} 47. Kf3 {[%clk 0:00:39]} 47... Kd5 {[%clk 0:00:15.5]} 48. Kf4 {[%clk
0:00:39.7]} 48... Rc4+ {[%clk 0:00:16]} 49. Kg5 {[%clk 0:00:41.1]} 49... Re4
{[%clk 0:00:10.8]} 50. Rxe4 {[%clk 0:00:39.9]} 50... Kxe4 {[%clk 0:00:12.7]} 51.
Kf6 {[%clk 0:00:41.2]} 51... b5 {[%clk 0:00:12.4]} 52. b3 {[%clk 0:00:37.5]}
52... Kd5 {[%clk 0:00:09.6]} 53. h4 {[%clk 0:00:33.6]} 53... a5 {[%clk 0:00:09]}
54. Kxf7 {[%clk 0:00:27.4]} 54... Kxe5 {[%clk 0:00:09.9]} 55. Kxg6 {[%clk
0:00:28.7]} 55... Ke4 {[%clk 0:00:09]} 56. Kxh5 {[%clk 0:00:29.9]} 56... e5
{[%clk 0:00:10.4]} 57. Kg4 {[%clk 0:00:30.3]} 57... Kd3 {[%clk 0:00:12.3]} 58.
h5 {[%clk 0:00:31.8]} 58... e4 {[%clk 0:00:14.2]} 59. h6 {[%clk 0:00:33.5]}
59... e3 {[%clk 0:00:16.1]} 60. h7 {[%clk 0:00:34.8]} 60... e2 {[%clk 0:00:18]}
61. h8=Q {[%clk 0:00:36.4]} 61... e1=Q {[%clk 0:00:19.9]} 62. Qd4+ {[%clk
0:00:37.4]} 62... Kc2 {[%clk 0:00:20.9]} 63. c4 {[%clk 0:00:35.1]} 63... Qe2+
{[%clk 0:00:19]} 64. Kf4 {[%clk 0:00:35.4]} 64... Qf1+ {[%clk 0:00:18.3]} 65.
Ke5 {[%clk 0:00:34.4]} 65... Kxb3 {[%clk 0:00:17.9]} 66. cxb5 {[%clk 0:00:35]}
66... Qxb5+ {[%clk 0:00:18.1]} 67. Qd5+ {[%clk 0:00:36.5]} 67... Qxd5+ {[%clk
0:00:19.4]} 68. Kxd5 {[%clk 0:00:37.9]} 68... Kxa3 {[%clk 0:00:21.3]} 69. g4
{[%clk 0:00:39.5]} 69... a4 {[%clk 0:00:22.4]} 70. g5 {[%clk 0:00:41]} 70... Kb2
{[%clk 0:00:24.3]} 71. g6 {[%clk 0:00:42.6]} 71... a3 {[%clk 0:00:26.2]} 72. g7
{[%clk 0:00:44.2]} 72... a2 {[%clk 0:00:28.1]} 73. g8=Q {[%clk 0:00:45.8]} 73...
a1=Q {[%clk 0:00:30]} 74. Qg7+ {[%clk 0:00:46.2]} 74... Kb1 {[%clk 0:00:31.4]}
75. Qg1+ {[%clk 0:00:46.1]} 75... Ka2 {[%clk 0:00:32.1]} 76. Qa7+ {[%clk
0:00:47]} 76... Kb1 {[%clk 0:00:33.4]} 77. Qb6+ {[%clk 0:00:48.1]} 77... Kc2
{[%clk 0:00:33.8]} 78. Qf2+ {[%clk 0:00:48.4]} 78... Kd3 {[%clk 0:00:33.9]} 79.
Qf3+ {[%clk 0:00:48.6]} 79... Kd2 {[%clk 0:00:35.1]} 80. Qf4+ {[%clk 0:00:49.1]}
80... Kd3 {[%clk 0:00:36.1]} 81. Qf5+ {[%clk 0:00:50.2]} 81... Kd2 {[%clk
0:00:36.9]} 82. Qf4+ {[%clk 0:00:51]} 82... Kd3 {[%clk 0:00:37.8]} 83. Qg3+
{[%clk 0:00:51.4]} 83... Kd2 {[%clk 0:00:38.7]} 84. Qf2+ {[%clk 0:00:52.5]}
84... Kd3 {[%clk 0:00:40]} 85. Qf3+ {[%clk 0:00:51.6]} 85... Kd2 {[%clk
0:00:40.9]} 86. Qf4+ {[%clk 0:00:51]} 86... Kd3 {[%clk 0:00:41.9]} 87. Qe4+
{[%clk 0:00:49.4]} 87... Kd2 {[%clk 0:00:42.8]} 88. Qb4+ {[%clk 0:00:50.1]}
88... Qc3 {[%clk 0:00:41.9]} 89. Qf4+ {[%clk 0:00:49]} 89... Kc2 {[%clk
0:00:42.9]} 90. Qe4+ {[%clk 0:00:49.6]} 90... Qd3+ {[%clk 0:00:44.2]} 91. Qxd3+
{[%clk 0:00:50.8]} 91... Kxd3 {[%clk 0:00:46.1]} 1/2-1/2

[Event "*** Titled Tuesday 3|2 Blitz"]
[Site "Chess.com"]
[Date "2016.10.04"]
[Round "4"]
[White "GGuseinov"]
[Black "Kouzari"]
[Result "1-0"]
[WhiteElo "2597"]
[BlackElo "2460"]
[TimeControl "180+2"]
[EndTime "17:54:16 PDT"]
[Termination "GGuseinov won by checkmate"]

1. e4 {[%clk 0:02:56.7]} 1... e6 {[%clk 0:03:00.2]} 2. d4 {[%clk 0:02:52.3]}
2... d5 {[%clk 0:03:02.1]} 3. Nd2 {[%clk 0:02:49.2]} 3... Nc6 {[%clk 0:03:01.4]}
4. Ngf3 {[%clk 0:02:45]} 4... Nf6 {[%clk 0:03:02.6]} 5. e5 {[%clk 0:02:46.3]}
5... Nd7 {[%clk 0:03:04.2]} 6. Bd3 {[%clk 0:02:39.4]} 6... Nb4 {[%clk 0:03:04]}
7. Be2 {[%clk 0:02:40.4]} 7... c5 {[%clk 0:03:05.5]} 8. c3 {[%clk 0:02:35.5]}
8... Nc6 {[%clk 0:03:06.3]} 9. Bd3 {[%clk 0:02:37]} 9... Be7 {[%clk 0:03:07.4]}
10. O-O {[%clk 0:02:31.8]} 10... g5 {[%clk 0:03:08.4]} 11. dxc5 {[%clk
0:02:28.8]} 11... g4 {[%clk 0:03:09.6]} 12. Nd4 {[%clk 0:02:27.2]} 12... Ncxe5
{[%clk 0:03:11.2]} 13. Bb5 {[%clk 0:02:23.6]} 13... a6 {[%clk 0:03:12.7]} 14.
Ba4 {[%clk 0:02:03.1]} 14... Bxc5 {[%clk 0:03:11.8]} 15. f4 {[%clk 0:02:00.6]}
15... Bxd4+ {[%clk 0:02:42.5]} 16. cxd4 {[%clk 0:01:59.1]} 16... Nc6 {[%clk
0:02:43.6]} 17. Bxc6 {[%clk 0:01:54.4]} 17... bxc6 {[%clk 0:02:44.5]} 18. Qxg4
{[%clk 0:01:56.3]} 18... Nf6 {[%clk 0:02:40.9]} 19. Qe2 {[%clk 0:01:45.2]} 19...
a5 {[%clk 0:02:37]} 20. Qe5 {[%clk 0:01:43.9]} 20... Rg8 {[%clk 0:02:28.3]} 21.
f5 {[%clk 0:01:35.3]} 21... Ng4 {[%clk 0:01:47.2]} 22. Qf4 {[%clk 0:01:36.1]}
22... exf5 {[%clk 0:01:45.1]} 23. Nf3 {[%clk 0:01:29.4]} 23... Nf6 {[%clk
0:01:39.8]} 24. Re1+ {[%clk 0:01:15.3]} 24... Ne4 {[%clk 0:01:40.1]} 25. Qh6
{[%clk 0:01:06.1]} 25... Be6 {[%clk 0:01:21.1]} 26. Bf4 {[%clk 0:01:01.2]} 26...
Qf6 {[%clk 0:01:15.6]} 27. Qxf6 {[%clk 0:00:56.8]} 27... Nxf6 {[%clk 0:01:16.3]}
28. Rac1 {[%clk 0:00:58.7]} 28... Ne4 {[%clk 0:01:05.9]} 29. Rxc6 {[%clk
0:00:53.4]} 29... a4 {[%clk 0:01:05.4]} 30. Rc7 {[%clk 0:00:47.5]} 30... Rc8
{[%clk 0:00:47.4]} 31. Rec1 {[%clk 0:00:39.7]} 31... Rxc7 {[%clk 0:00:48.6]} 32.
Rxc7 {[%clk 0:00:41.5]} 32... f6 {[%clk 0:00:50.2]} 33. g3 {[%clk 0:00:39.1]}
33... h5 {[%clk 0:00:50.1]} 34. Ra7 {[%clk 0:00:39.7]} 34... Bd7 {[%clk
0:00:49.9]} 35. Nh4 {[%clk 0:00:34.5]} 35... Ng5 {[%clk 0:00:38]} 36. Kf2 {[%clk
0:00:32]} 36... Ne6 {[%clk 0:00:37.5]} 37. Ke3 {[%clk 0:00:32.8]} 37... Nxf4
{[%clk 0:00:37.5]} 38. Kxf4 {[%clk 0:00:28.5]} 38... Rg4+ {[%clk 0:00:37.5]} 39.
Ke3 {[%clk 0:00:29.7]} 39... f4+ {[%clk 0:00:38.1]} 40. Kf2 {[%clk 0:00:27.9]}
40... fxg3+ {[%clk 0:00:39.1]} 41. hxg3 {[%clk 0:00:29.8]} 41... Rxd4 {[%clk
0:00:40]} 42. Ke3 {[%clk 0:00:19.9]} 42... Rb4 {[%clk 0:00:40.5]} 43. Ng6 {[%clk
0:00:17.3]} 43... Rxb2 {[%clk 0:00:36.4]} 44. Nf4 {[%clk 0:00:18.3]} 44... Rb5
{[%clk 0:00:19.3]} 45. Kd4 {[%clk 0:00:17.8]} 45... Bg4 {[%clk 0:00:20.2]} 46.
Nxd5 {[%clk 0:00:17.4]} 46... Kd8 {[%clk 0:00:17.2]} 47. Rxa4 {[%clk 0:00:10.8]}
47... f5 {[%clk 0:00:14.3]} 48. Ra7 {[%clk 0:00:07.8]} 48... Rb1 {[%clk
0:00:14.5]} 49. Ke5 {[%clk 0:00:08.2]} 49... Kc8 {[%clk 0:00:14.5]} 50. Nf6
{[%clk 0:00:07.2]} 50... Rg1 {[%clk 0:00:13.4]} 51. Ra3 {[%clk 0:00:07.6]} 51...
Rf1 {[%clk 0:00:09.7]} 52. Rc3+ {[%clk 0:00:08.1]} 52... Kd8 {[%clk 0:00:10.7]}
53. a4 {[%clk 0:00:09.1]} 53... Ke7 {[%clk 0:00:12.1]} 54. Nd5+ {[%clk
0:00:08.3]} 54... Kf7 {[%clk 0:00:13.5]} 55. Rc7+ {[%clk 0:00:08]} 55... Kg6
{[%clk 0:00:14.3]} 56. Nf4+ {[%clk 0:00:09.1]} 56... Kh6 {[%clk 0:00:15]} 57. a5
{[%clk 0:00:06.8]} 57... Ra1 {[%clk 0:00:16]} 58. Ra7 {[%clk 0:00:07.7]} 58...
Re1+ {[%clk 0:00:13.4]} 59. Kf6 {[%clk 0:00:08.2]} 59... Ra1 {[%clk 0:00:14.5]}
60. Ra8 {[%clk 0:00:09]} 60... Kh7 {[%clk 0:00:15.8]} 61. Ne6 {[%clk 0:00:09.8]}
61... f4 {[%clk 0:00:09.8]} 62. Ng5+ {[%clk 0:00:10.7]} 62... Kh6 {[%clk
0:00:11.3]} 63. Rh8# {[%clk 0:00:12.1]} 1-0